Cogmind - Beta 11.1 @@@ ROGUE MODE // 2022.11.30 @ 17:43:08 Player: deadnoob Result: Self-destructed Performance ------------- Evolutions (1) 500 Regions Visited (5) 1000 Robots Destroyed (42) 210 Value Destroyed (950) 950 Prototype IDs (24) 480 Alien Tech Used (0) 0 Bonus (188) 188 TOTAL SCORE: 3328 Bonus ------- High Alert Combat Kills 43 Follower Combat Kills 7 Aligned with FarCom 300 Friendly Fire -162 Cogmind --------- Core Integrity 234/400 Matter 24/300 Energy 250/250 System Corruption 8% Temperature Cool (0) Movement Treading (150) Location -9/Exiles Parts ------- > --- POWER (1) -------- Ion Engine > --- PROPULSION (3) --- Light Treads Advanced Treads Advanced Treads > --- UTILITY (3) ------ High-capacity Storage Unit Improved Light Armor Plating Improved Light Armor Plating > --- WEAPON (2) ------- Autogun Rocket Launcher > --- INVENTORY (20) --- Light Treads Light Treads Advanced Treads Advanced Treads Armored Wheel Armored Wheel Armored Wheel Armored Wheel Experimental Sensor Array Improved Light Armor Plating Improved Light Armor Plating Improved Light Armor Plating Improved Light Armor Plating Improved Light Armor Plating Improved Light Armor Plating Assault Rifle Heavy Assault Rifle Autogun Autogun Autogun Peak State ------------ > --- POWER ------------ Ion Engine > --- PROPULSION ------- Light Treads Light Treads Advanced Treads > --- UTILITY ---------- High-capacity Storage Unit Decoy Drone Bay > --- WEAPON ----------- Autogun Autogun > --- INVENTORY -------- Light Treads Advanced Treads Advanced Treads Advanced Treads Armored Wheel Armored Wheel Armored Wheel Armored Wheel Improved Light Armor Plating Improved Light Armor Plating Improved Light Armor Plating Improved Light Armor Plating Improved Light Armor Plating Improved Light Armor Plating Improved Light Armor Plating Assault Rifle Heavy Assault Rifle Autogun Autogun Rocket Launcher [Rating: 29] Favorites ----------- Power Ion Engine Engine Ion Engine Propulsion Light Treads Treads Light Treads Leg Aluminum Leg Utility Improved Light Armor Plating Device Decoy Drone Bay Storage High-capacity Storage Unit Protection Improved Light Armor Plating Weapon Autogun Energy Gun EM Shotgun Ballistic Gun Autogun Launcher Rocket Launcher Build | -11 -10 -10 -9 -9 -9 ------- Run | Scr Mat Min Mat Min Exi Slots Evolved 2 | . . . 2 . . Power . | . . . . . . Propulsion 1 | . . . 1 . . Utility 1 | . . . 1 . . Weapon . | . . . . . . Parts Attached 36 | . 6 5 18 4 3 Power 2 | . . . 2 . . Engine 2 | . . . 2 . . Core . | . . . . . . Reactor . | . . . . . . Propulsion 12 | . . 2 7 . 3 Treads 11 | . . 2 6 . 3 Leg 1 | . . . 1 . . Wheel . | . . . . . . Hover . | . . . . . . Flight . | . . . . . . Utility 6 | . . . 3 3 . Device 1 | . . . . 1 . Storage 1 | . . . 1 . . Processor . | . . . . . . Hackware . | . . . . . . Protection 4 | . . . 2 2 . Artifact . | . . . . . . Weapon 16 | . 6 3 6 1 . Energy Gun 9 | . 4 1 4 . . Energy Cannon . | . . . . . . Ballistic Gun 4 | . 2 . 2 . . Ballistic Cannon . | . . . . . . Launcher 3 | . . 2 . 1 . Special Weapon . | . . . . . . Impact Weapon . | . . . . . . Slashing Weapon . | . . . . . . Piercing Weapon . | . . . . . . Special Melee Weapon . | . . . . . . Unidentified Prototypes 1 | . . . . 1 . Corrupted Parts 2 | . . . 2 . . System Corruption 5 | . . . 5 . . Parts Lost 8 | . . . 8 . . Power 2 | . . . 2 . . Propulsion 3 | . . . 3 . . Utility . | . . . . . . Weapon 3 | . . . 3 . . Highest Loss Streak 4 | . . . 4 . . To Critical Strikes . | . . . . . . Average Slot Usage (%) 89 | . 83 85 87 93 100 Engine 11 | . 14 14 9 11 11 Treads 27 | . . 25 26 33 33 Leg 3 | . 28 2 4 . . Storage 12 | . 14 14 14 11 11 Protection 10 | . . . 10 15 22 Energy Gun 9 | . 25 24 7 . . Ballistic Gun 11 | . 1 . 12 18 11 Launcher 3 | . . 3 . 3 11 Naked Turns . | . . . . . . Heaviest Build 61 | 11 14 15 61 59 58 Greatest Support 64 | 20 20 20 62 62 64 Greatest Overweight (x) 4 | . . . 4 . . Average Overweight (x) . | . . . . . . Largest Inventory Capacity 20 | . 8 8 20 20 20 Average Capacity 14 | . 8 8 13 20 20 Most Carried 20 | . 8 8 20 20 20 Average Carried 13 | . 7 8 9 19 20 Final Capacity 20 | 8 8 8 20 20 20 Final Carried 20 | 6 8 8 20 20 20 Class Distribution -------------------- 90% | Mutant 9% | Scavenger-Mutant Dominant Class ---------------- Mutant | -10/Materials Mutant | -10/Mines Mutant | -9/Materials Mutant | -9/Mines Mutant | -9/Exiles Resources | -11 -10 -10 -9 -9 -9 ----------- Run | Scr Mat Min Mat Min Exi Matter Collected 857 | 200 . 102 234 321 . Remotely . | . . . . . . Salvage Created 1420 | . . 261 811 348 . Parts 86 | . . 22 51 13 . Haulers Intercepted 2 | . . . 2 . . Recyclers Shooed 1 | . . . . 1 . Parts Field Recycled . | . . . . . . Retrieved Matter . | . . . . . . Parts Self-Destructed . | . . . . . . Prevented . | . . . . . . Kills | -11 -10 -10 -9 -9 -9 ------- Run | Scr Mat Min Mat Min Exi Combat Hostiles Destroyed 51 | . . 10 17 24 . Guns 19 | . . 3 13 3 . AOE 32 | . . 7 4 21 . Classes Destroyed 10 | . . 4 3 3 . Worker 3 | . . . . 3 . Builder 1 | . . 1 . . . Tunneler 1 | . . 1 . . . Hauler 2 | . . . 2 . . Recycler 2 | . . . 1 1 . Swarmer 11 | . . 6 3 2 . Grunt 17 | . . 4 11 2 . Duelist 1 | . . . . 1 . Sentry 3 | . . . 3 . . Assembled 19 | . . . . 19 . Thug 1 | . . . . 1 . Best Kill Streak 19 | . . 6 4 19 . Combat Bots Only 19 | . . 5 3 19 . Max Kills in Single Turn 5 | . . 3 2 5 . Gunslinging 1 | . . . . 1 . Exploded 5 | . . 2 2 5 . Melee . | . . . . . . Uniques/NPCs Destroyed . | . . . . . . Combat | -11 -10 -10 -9 -9 -9 -------- Run | Scr Mat Min Mat Min Exi Damage Taken 1815 | . . 353 1061 401 . Core 227 | . . 61 102 64 . Absorbed by Shields . | . . . . . . Core Remaining (%) 87 | 100 . 75 . . . Volleys Fired 84 | . . 14 45 25 . Largest 2 | . . 2 2 2 . Hottest 90 | . . 90 90 46 . Shots Fired 150 | . . 23 88 39 . Gun 131 | . . 18 85 28 . Cannon . | . . . . . . Launcher 19 | . . 5 3 11 . Special . | . . . . . . Kinetic 83 | . . . 55 28 . Thermal . | . . . . . . Explosive 19 | . . 5 3 11 . Electromagnetic 48 | . . 18 30 . . Robot Hit Streak 7 | . . 6 6 7 . Robot Miss Streak 4 | . . 2 4 3 . Penetration Max . | . . . . . . Secondary Targets 4 | . . 1 2 1 . Max Gunslinging Chain 1 | . . 1 1 1 . Shots Hit Robots 99 | . . 17 58 24 . Core Hits 99 | . . 19 32 48 . Critical Kills 1 | . . . 1 . . Critical Parts Destroyed . | . . . . . . Critical Strikes 1 | . . . 1 . . Destroy 1 | . . . 1 . . Melee Attacks . | . . . . . . Impact . | . . . . . . Slashing . | . . . . . . Piercing . | . . . . . . Sneak Attacks . | . . . . . . Combat Hostiles . | . . . . . . Follow-up Attacks . | . . . . . . Damage Inflicted 3700 | . . 730 1050 1920 . Guns 1390 | . . 271 844 275 . Cannons . | . . . . . . Explosions 2256 | . . 459 198 1599 . Melee . | . . . . . . Ramming 54 | . . . 8 46 . Kinetic 817 | . . . 542 275 . Thermal 129 | . . 77 52 . . Explosive 2127 | . . 382 146 1599 . Electromagnetic 573 | . . 271 302 . . Impact . | . . . . . . Slashing . | . . . . . . Piercing . | . . . . . . Highest Corruption 8 | . . . 8 8 8 Average Corruption 6 | . . . 4 8 8 Corruption Purged . | . . . . . . Corruption Blocked . | . . . . . . Effects 40 | . . . 14 22 4 Message Errors 6 | . . . 2 3 1 Matter Fused 15 | . . . 7 8 . Heat Flow Errors 2 | . . . . 1 1 Energy Discharges 5 | . . . 1 3 1 Data Loss (minor) 5 | . . . 1 3 1 Data Loss (major) 4 | . . . 2 2 . Misfires 1 | . . . . 1 . Alerts 1 | . . . 1 . . Weapon Failures 1 | . . . . 1 . Overload Shots . | . . . . . . Overflow Damage 56 | . . 11 . 45 . Projectiles . | . . . . . . Explosions 56 | . . 11 . 45 . Melee . | . . . . . . Knockbacks . | . . . . . . Impact . | . . . . . . Kinetic . | . . . . . . Secondary . | . . . . . . Self-Inflicted Damage 344 | . . 128 38 178 . Shots 10 | . . 3 2 5 . Rammed 7 | . . . 1 6 . Targets Rammed 8 | . . . 1 7 . Kicked . | . . . . . . Crushed 1 | . . . . 1 . Highest Temperature 262 | . . 153 162 123 262 Average Temperature 49 | . . 66 44 22 133 Received Heat Transfer 612 | . . 93 429 90 . Effects 1 | . . . . . 1 Interference 1 | . . . . . 1 Siege Activations . | . . . . . . Robots Corrupted . | . . . . . . Combat Hostiles . | . . . . . . Parts Fried 1 | . . . 1 . . Impact Corruptions . | . . . . . . Robots Melted . | . . . . . . Combat Hostiles . | . . . . . . Parts Melted . | . . . . . . Heat Transferred 100 | . . 50 50 . . Parts Sabotaged . | . . . . . . Parts Stolen . | . . . . . . Parts Stripped . | . . . . . . Power Chain Reactions 3 | . . 1 2 . . Missiles Intercepted . | . . . . . . Alert | -11 -10 -10 -9 -9 -9 ------- Run | Scr Mat Min Mat Min Exi Peak Influence 513 | . 29 401 513 304 . Initial 160 | . . 10 78 160 . Average 234 | . 8 175 366 189 . Maximum Alert Level 2 | . . 2 2 1 . Low Security (%) 50 | . 100 71 5 69 . Level 1 37 | . . 19 64 30 . Level 2 11 | . . 8 29 . . Level 3 . | . . . . . . Level 4 . | . . . . . . Level 5 . | . . . . . . High Security . | . . . . . . Max Security . | . . . . . . Squads Dispatched 4 | . 1 . 3 . . Investigation 1 | . . . 1 . . Extermination . | . . . . . . Reinforcement 3 | . 1 . 2 . . Assault . | . . . . . . Garrison . | . . . . . . Intercept . | . . . . . . Searches Triggered . | . . . . . . Construction Impeded . | . . . . . . Haulers Reinforced . | . . . . . . Active Scanning Responses . | . . . . . . Cargo Convoy Interrupts . | . . . . . . Stealth | -11 -10 -10 -9 -9 -9 --------- Run | Scr Mat Min Mat Min Exi Distress Signals 2 | . . . 2 . . Communications Jammed . | . . . . . . Distress Signals . | . . . . . . Times Spotted 60 | . 3 9 23 25 . Peak Tracking Total 13 | . 2 3 4 13 . Tactical Retreats 2 | . . . 1 1 . Traps | -11 -10 -10 -9 -9 -9 ------- Run | Scr Mat Min Mat Min Exi Traps Triggered 2 | . . . 2 . . Indirectly . | . . . . . . Trap Hack Attempts . | . . . . . . Triggered . | . . . . . . Disarmed . | . . . . . . Reprogrammed . | . . . . . . Reused . | . . . . . . Traps Extracted . | . . . . . . Installed . | . . . . . . Triggered . | . . . . . . Machines | -11 -10 -10 -9 -9 -9 ---------- Run | Scr Mat Min Mat Min Exi Machines Disabled 1 | . . . 1 . . Max in Single Turn 1 | . . . 1 . . Machines Sabotaged . | . . . . . . Garrisons Compromised . | . . . . . . Overloaded Fab Kills . | . . . . . . Hacking | -11 -10 -10 -9 -9 -9 --------- Run | Scr Mat Min Mat Min Exi Machines Accessed 5 | . 1 . 2 1 1 Terminals 2 | . 1 . 1 . . Fabricators . | . . . . . . Repair Stations . | . . . . . . Recycling Units 1 | . . . 1 . . Scanalyzers . | . . . . . . Garrison Access . | . . . . . . Total Hacks 9 | . 5 . 2 1 1 Successful 7 | . 3 . 2 1 1 Failed 2 | . 2 . . . . Catastrophic 1 | . 1 . . . . Database Lockouts . | . . . . . . Manual 6 | . 4 . 1 . 1 Terminals 6 | . 5 . 1 . . Fabricators . | . . . . . . Repair Stations . | . . . . . . Recycling Units 1 | . . . 1 . . Scanalyzers . | . . . . . . Garrison Access . | . . . . . . Terminal Hacks 6 | . 3 . 1 1 1 Record 1 | . 1 . . . . Open Door 1 | . . . . 1 . Branch Access Points 2 | . 1 . 1 . . Zone Layout 1 | . 1 . . . . EX-Prototype ID Bank 1 | . . . . . 1 Fabricator Hacks . | . . . . . . Repair Station Hacks . | . . . . . . Recycling Unit Hacks . | . . . . . . Scanalyzer . | . . . . . . Garrison Access Hacks . | . . . . . . Unauthorized Hacks 1 | . . . 1 . . Terminals . | . . . . . . Fabricators . | . . . . . . Repair Stations . | . . . . . . Recycling Units 1 | . . . 1 . . Tunnel 1 | . . . 1 . . Scanalyzers . | . . . . . . Garrison Access . | . . . . . . Data Cores Recovered . | . . . . . . Used . | . . . . . . Hacking Detections 2 | . 1 . 1 . . Full Trace Events 1 | . 1 . . . . Feedback Events . | . . . . . . Feedback Blocked . | . . . . . . Robot Schematics Acquired . | . . . . . . Robots Built . | . . . . . . Authchips . | . . . . . . Time . | . . . . . . Total Robot Build Rating . | . . . . . . Part Schematics Acquired . | . . . . . . Parts Built . | . . . . . . Authchips . | . . . . . . Time . | . . . . . . Total Part Build Rating . | . . . . . . Parts Repaired . | . . . . . . Time . | . . . . . . Parts Recycled . | . . . . . . Recycled Matter . | . . . . . . Retrieved Matter . | . . . . . . Retrieved Components . | . . . . . . Parts Scanalyzed . | . . . . . . Part Schematics Acquired . | . . . . . . Parts Damaged . | . . . . . . Bothacking | -11 -10 -10 -9 -9 -9 ------------ Run | Scr Mat Min Mat Min Exi Used RIF Installer . | . . . . . . Robots Hacked . | . . . . . . Non-combat . | . . . . . . Combat . | . . . . . . Robot Hacks Applied . | . . . . . . Relay Couplers Released . | . . . . . . Fabnet Peak Effective % . | . . . . . . Robots Rewired . | . . . . . . Allies Hacked . | . . . . . . Hacks Repelled . | . . . . . . Allies | -11 -10 -10 -9 -9 -9 -------- Run | Scr Mat Min Mat Min Exi Total Allies 1 | . . . . 1 . Largest Group 1 | . . . . 1 . Highest-Rated Group 31 | . . . . 31 . Highest-Rated Ally 31 | . . . . 31 . Total Orders . | . . . . . . Ally Attacks 3 | . . . . 3 . Total Damage 42 | . . . . 42 . Kills 2 | . . . . 2 . Allies Corrupted . | . . . . . . Allies Melted . | . . . . . . Intel | -11 -10 -10 -9 -9 -9 ------- Run | Scr Mat Min Mat Min Exi Robot Analysis Total . | . . . . . . Derelict Logs Recovered . | . . . . . . Drone Launches . | . . . . . . Drone Recoveries . | . . . . . . Exploration | -11 -10 -10 -9 -9 -9 ------------- Run | Scr Mat Min Mat Min Exi Turns Passed 2171 | . 123 469 677 729 173 Spaces Moved 1165 | 1 90 270 274 421 109 Core 9 | . . . 9 . . Treads 1033 | . . 238 265 421 109 Legs 123 | 1 90 32 . . . Wheels . | . . . . . . Hover . | . . . . . . Flight . | . . . . . . Fastest Speed 120 | 120 120 120 155 155 150 Average Speed 159 | 120 120 155 186 155 153 Slowest Speed 250 | 120 120 160 250 155 155 Overloaded Moves . | . . . . . . Propulsion Burnouts . | . . . . . . Robots Hopped . | . . . . . . Cave-ins Triggered . | . . . . . . Exploration Rate (%) 41 | 2 21 70 35 78 40 Regions Visited 5 Branch Regions 3 Pre-discovered Areas 2 | . . 1 1 . . Known Exits Taken 2 | . 1 . 1 . . Unknown Exits Taken 3 | 1 . 1 . 1 . Scrap Searched 1 | . . . . 1 . Spaces Dug 12 | . . 12 . . . Terrain Destroyed 203 | . . 54 33 116 . Melee . | . . . . . . Projectile . | . . . . . . AOE 203 | . . 54 33 116 . Terrain Rammed . | . . . . . . Walls Destroyed . | . . . . . . Machines Disabled . | . . . . . . Actions | -11 -10 -10 -9 -9 -9 --------- Run | Scr Mat Min Mat Min Exi Total 1336 | . 107 295 361 461 112 Wait 7 | . . 5 . 2 . Move 1158 | . 89 269 272 419 109 Hop . | . . . . . . Pick Up 24 | . 4 1 18 1 . Fast Attach 13 | . 2 . 9 2 . Attach 6 | . . . 5 1 . Detach 4 | . 2 . 2 . . Swap 17 | . 4 5 4 1 3 Drop 15 | . 6 1 5 3 . Fire 84 | . . 14 45 25 . Melee . | . . . . . . Ram . | . . . . . . Kick . | . . . . . . Crush 8 | . . . 1 7 . Escape Stasis . | . . . . . . Rewire . | . . . . . . Trap . | . . . . . . Miscellaneous . | . . . . . . Route ------- -11/Scrapyard -10/Materials -10/Mines -9/Materials (discovered 5 exits: [*Mat x2] / *Min / *Sto x2) -9/Mines (discovered 4 exits: [*Mat x2] / *Exi / [*Zio]) -9/Exiles History --------- Turn | Location | Event 1 | -11/Scrapyard | Discovered new exit (range 0) 1 | -11/Scrapyard | Entered Materials 69 | -10/Materials | Identified exit to Mines 124 | -10/Materials | Entered Mines 171 | -10/Mines | Received a Rocket Launcher from a helpful Derelict 308 | -10/Mines | Build established: Mutant 317 | -10/Mines | Learned location of Storage (-9) 585 | -10/Mines | Discovered new exit (range 4) 593 | -10/Mines | Entered Materials 593 | -9/Materials | Evolved 2 slots: Propulsion x1, Utility x1 719 | -9/Materials | Lost 4 parts (1p1n2w) 722 | -9/Materials | Identified exit to Mines 722 | -9/Materials | Identified exit to Storage 801 | -9/Materials | Discovered new exit (range 8) 1158 | -9/Materials | Discovered new exit (range 10) 1270 | -9/Materials | Entered Mines 1297 | -9/Mines | Met a Derelict bent on vengeance 1313 | -9/Mines | Found the Drone Emporium 1321 | -9/Mines | Found Prototype Device 1321 | -9/Mines | Identified Decoy Drone Bay 1626 | -9/Mines | Discovered new exit (range 5) 1654 | -9/Mines | Discovered new exit (range 6) 1657 | -9/Mines | Escorted by a lone wolf Derelict 1762 | -9/Mines | Found a damaged Exp. Sensor Array with a note attached 1765 | -9/Mines | Found Prototype Device 1885 | -9/Mines | Assembled infested the area 1934 | -9/Mines | Destroyed 19 combat bots 1943 | -9/Mines | A Derelict revealed a hidden shortcut to a safe place 1991 | -9/Mines | Deemed a non-threat by the Exiles lab entrance 1993 | -9/Mines | Discovered new exit (range 5) 1999 | -9/Mines | Entered Exiles 2038 | -9/Exiles | Met 8R-AWN 2065 | -9/Exiles | Met EX-HEX 2108 | -9/Exiles | Met EX-BIN 2125 | -9/Exiles | Aligned with FarCom system 2127 | -9/Exiles | Given EX-Vault access code 2166 | -9/Exiles | Opened EX-Vault 2172 | -9/Exiles | Self-destructed Last Messages --------------- Modified TNC 0b10 Alert Chip Cloak of Protection Skeleton Box Trap Reconfigurator Supersonic Drone Bay Army-in-a-Box PSU Rigger Chronowheel AWS/Thermal Latent Energy Streamer Gui. Plasma Cannon Firepult YOLO Cannon AWS/Gauss XL Autogun Array AWS/Autocannon Field Lobotomy Kit Longsword +1 Deploy-a-Sentry Map ----- +----------------------------------------------------+ | | | | | | | | | | | | | | | | | | | | | | | | | | | | | | | | | | | | | | | | | | | ???????????????????#########?????????????????????? | | ???????????????????# #?????????????????????? | | ???????????????????# = ! #?????????????????????? | | ???????????????????# ! #?????????????????????? | | ???????????????????# @X#?????????????????????? | | ???????????????????## ##?????????????????????? | | ???????????????????#X #??????????????????????? | | ???????????????????## #??????????????????????? | | ????????????????????# #??????????????????????? | | ????????????????????# #???###????????????????? | | ????????????????????# #??"""""???????????????? | | ????????????????????# ## """???????????????? | | ????????????????????# X""???????????????? | | ????????????????????# ## """???????????????? | | ??????????????####??# #??"""""???????????????? | | ??????????????"""""?# #???###????????????????? | | ?????????????"""" ## #??????????????????????? | | ????????????#""X" #??????????????????????? | | ????????????#" #??????????????????????? | | ????????????#" ## #??????????????????????? | | ????????????#""""""?# #?#########????????????? | | ?????????????#"###??# #?#"""""""#????????????? | | ????????????????????# #?#"""""""#????????????? | | ????????????????????# #?#"""""""#????????????? | | ???????????????????## ###"" """"#????????????? | | ???????????????????#" """"#????????????? | | ???????????????????#" """#????????????? | | ???????????????????#" """#????????????? | | ???????????????????#" """#????????????? | +----------------------------------------------------+ Best States ------------- Heat Dissipation 28 Energy Generation 10 Energy Capacity 250 Matter Stores 300 Matter Capacity 300 Sight Range 16 Terrain Scan Density 10 Armor Coverage 300 Evasion (%) 55 Recoil Reduction 3 Item Schematics ----------------- None Robot Schematics ------------------ None Fabricated ------------ Nothing Alien Tech Used ----------------- None Achievements -------------- None Challenges ------------ None Game ------ Seed BehemothAlchemyTable Manual? 1 Play Time 00:11:02 Cumulative 145.3 hours Start 2022.11.30 @ 17:31:41 End 2022.11.30 @ 17:43:08 Sessions 1 Manual Loads 0 Difficulty Rogue Special Mode None Game No. 181 Rogue 181 Adventurer 0 Explorer 0 Win Type - Total 2 Types 1/0/0/1/0/0/0/0/0 Lore% 75 Gallery% 76 Achievement% 59 Wizard Run 0 Options --------- ASCII 0 Keyboard 0 Movement Numpad Keybinds 0 Fullscreen 2 Font 18/SmallcapsGlow Map View 76x50 Tactical HUD 1 Map Filters NONE Filters NONE Steam 1 RUN: 9f12224c-6a28-45fd-8e02-9a0fded57718